Cogmind - Beta 10.2 *** ADVENTURER MODE // 2021.10.28 @ 14:54:22 Player: Driana Result: Destroyed by Y-45 Defender with Heavy Assault Rifle Performance ------------- Evolutions (1) 500 Regions Visited (2) 400 Robots Destroyed (23) 115 Value Destroyed (605) 605 Prototype IDs (0) 0 Alien Tech Used (0) 0 Bonus (0) 0 TOTAL SCORE: 1620 Bonus ------- None Cogmind --------- Core Integrity 0/400 Matter 290/300 Energy 92/265 System Corruption 0% Temperature Cool (9) Movement Core (150) Ox2 Location -9/Materials Parts ------- > --- POWER (1) -------- Improved Ion Engine > --- PROPULSION (4) --- (None) > --- UTILITY (2) ------ Transport Network Coupler > --- WEAPON (2) ------- (None) > --- INVENTORY (4) ---- Large Battery (300) Sensor Array Datajack Peak State ------------ > --- POWER ------------ Ion Engine > --- PROPULSION ------- Flight Unit Flight Unit Flight Unit > --- UTILITY ---------- Improved Heat Sink Transport Network Coupler > --- WEAPON ----------- Small Laser Plasma Cutter > --- INVENTORY -------- Large Battery Sensor Array Datajack [Rating: 11] Favorites ----------- Power Light Ion Engine Engine Light Ion Engine Propulsion Light Treads Treads Light Treads Hover Unit Hover Unit Flight Unit Flight Unit Utility Medium Storage Unit Device Field Recycling Unit Storage Medium Storage Unit Processor Transport Network Coupler Weapon EM Pulse Gun Energy Gun EM Pulse Gun Ballistic Gun Light Assault Rifle Special Weapon Mining Laser Impact Weapon Mace Build | -11 -10 -9 ------- Run | Scr Mat Mat Slots Evolved 2 | . . 2 Power . | . . . Propulsion 2 | . . 2 Utility . | . . . Weapon . | . . . Parts Attached 32 | 6 22 4 Power 7 | 1 5 1 Engine 7 | 1 5 1 Core . | . . . Reactor . | . . . Propulsion 7 | 2 4 1 Treads 2 | 2 . . Leg . | . . . Wheel . | . . . Hover 1 | . 1 . Flight 4 | . 3 1 Utility 8 | 1 7 . Device 4 | . 4 . Storage 3 | 1 2 . Processor 1 | . 1 . Hackware . | . . . Protection . | . . . Artifact . | . . . Weapon 10 | 2 6 2 Energy Gun 4 | 1 3 . Energy Cannon . | . . . Ballistic Gun 1 | 1 . . Ballistic Cannon . | . . . Launcher . | . . . Special Weapon 4 | . 3 1 Impact Weapon 1 | . . 1 Slashing Weapon . | . . . Piercing Weapon . | . . . Special Melee Weapon . | . . . Unidentified Prototypes . | . . . Parts Lost 10 | . 2 8 Power 2 | . 1 1 Propulsion 3 | . . 3 Utility 1 | . . 1 Weapon 4 | . 1 3 Highest Loss Streak 7 | . 2 7 Average Slot Usage (%) 85 | . 91 61 Engine 12 | . 13 7 Treads 16 | . 20 . Flight 9 | . 7 20 Device 8 | . 9 8 Storage 11 | . 14 . Processor 2 | . . 11 Energy Gun 16 | . 19 5 Ballistic Gun 2 | . 3 . Special Weapon 2 | . 2 2 Impact Weapon 1 | . . 6 Naked Turns . | . . . Heaviest Build 24 | 10 24 9 Greatest Support 40 | 40 40 12 Greatest Overweight (x) 3 | . 3 . Average Overweight (x) . | . . . Largest Inventory Capacity 10 | 6 10 4 Average Capacity 6 | 5 7 4 Most Carried 8 | . 8 3 Average Carried 3 | . 4 3 Final Capacity 6 | 6 4 4 Final Carried 4 | . 4 3 Class Distribution -------------------- 65% | Mutant 34% | Scavenger-Mutant Dominant Class ---------------- Mutant | -10/Materials Scavenger-Mutant | -9/Materials Resources | -11 -10 -9 ----------- Run | Scr Mat Mat Matter Collected 491 | 268 203 20 Remotely . | . . . Salvage Created 857 | 106 458 293 Parts 48 | 2 37 9 Haulers Intercepted . | . . . Recyclers Shooed . | . . . Parts Field Recycled . | . . . Retrieved Matter . | . . . Parts Self-Destructed . | . . . Prevented . | . . . Kills | -11 -10 -9 ------- Run | Scr Mat Mat Combat Hostiles Destroyed 17 | . 11 6 Melee 4 | . . 4 Guns 11 | . 11 . Classes Destroyed 8 | 2 4 2 Worker 1 | . 1 . Builder 1 | . . 1 Tunneler 1 | 1 . . Recycler 1 | 1 . . Watcher 2 | . 2 . Swarmer 3 | . 3 . Grunt 12 | . 8 4 Sentry 2 | . . 2 Best Kill Streak 6 | 2 5 6 Combat Bots Only 6 | . 4 6 Max Kills in Single Turn 2 | 1 2 1 Gunslinging 1 | . 1 . Exploded . | . . . Melee 1 | . . 1 Uniques/NPCs Destroyed . | . . . Combat | -11 -10 -9 -------- Run | Scr Mat Mat Damage Taken 1133 | . 463 670 Core 499 | . 99 400 Absorbed by Shields . | . . . Core Remaining (%) 80 | 100 60 . Volleys Fired 53 | 8 45 . Largest 2 | 1 2 . Hottest 105 | 20 105 . Shots Fired 66 | 8 58 . Gun 60 | 8 52 . Cannon . | . . . Launcher . | . . . Special 6 | . 6 . Kinetic 11 | 8 3 . Thermal 28 | . 28 . Explosive . | . . . Electromagnetic 27 | . 27 . Robot Hit Streak 26 | 5 26 . Robot Miss Streak 4 | 1 4 . Penetration Max . | . . . Secondary Targets 1 | . 1 . Max Gunslinging Chain 1 | . 1 . Shots Hit Robots 75 | 7 45 23 Core Hits 37 | 4 29 4 Critical Hits . | . . . Critical Kills . | . . . Critical Parts Destroyed . | . . . Melee Attacks 23 | . . 23 Impact 23 | . . 23 Slashing . | . . . Piercing . | . . . Sneak Attacks 1 | . . 1 Combat Hostiles . | . . . Follow-up Attacks . | . . . Damage Inflicted 1116 | 54 558 504 Guns 597 | 54 543 . Cannons . | . . . Explosions . | . . . Melee 504 | . . 504 Ramming 12 | . 12 . Kinetic 60 | 54 6 . Thermal 228 | . 228 . Explosive . | . . . Electromagnetic 312 | . 312 . Impact 504 | . . 504 Slashing . | . . . Piercing . | . . . Highest Corruption . | . . . Average Corruption . | . . . Corruption Purged . | . . . Overload Shots . | . . . Overflow Damage 63 | . . 63 Projectiles . | . . . Explosions . | . . . Melee 63 | . . 63 Knockbacks 1 | . . 1 Impact 1 | . . 1 Kinetic . | . . . Secondary . | . . . Self-Inflicted Damage . | . . . Shots . | . . . Rammed 1 | . 1 . Targets Rammed 1 | . 1 . Kicked . | . . . Crushed . | . . . Highest Temperature 384 | . 384 . Average Temperature 122 | . 122 . Received Heat Transfer 435 | . 123 312 Effects 5 | . 5 . Shutdowns 1 | . 1 . Energy Bleed 1 | . 1 . Interference 3 | . 3 . Siege Activations . | . . . Robots Corrupted . | . . . Combat Hostiles . | . . . Parts Fried 8 | . 3 5 Impact Corruptions 4 | . . 4 Robots Melted . | . . . Combat Hostiles . | . . . Parts Melted . | . . . Heat Transferred 465 | . 465 . Parts Sabotaged . | . . . Parts Stolen . | . . . Parts Stripped . | . . . Power Chain Reactions . | . . . Missiles Intercepted . | . . . Alert | -11 -10 -9 ------- Run | Scr Mat Mat Peak Influence 174 | 10 166 174 Initial 59 | . 5 59 Average 41 | 7 36 90 Maximum Alert Level . | . . . Low Security (%) 100 | 100 100 100 Level 1 . | . . . Level 2 . | . . . Level 3 . | . . . Level 4 . | . . . Level 5 . | . . . High Security . | . . . Max Security . | . . . Squads Dispatched 2 | . 2 . Investigation 2 | . 2 . Extermination . | . . . Reinforcement . | . . . Assault . | . . . Garrison . | . . . Intercept . | . . . Construction Impeded . | . . . Haulers Reinforced . | . . . Stealth | -11 -10 -9 --------- Run | Scr Mat Mat Distress Signals 1 | . 1 . Communications Jammed . | . . . Distress Signals . | . . . Times Spotted 30 | . 22 8 Peak Tracking Total 8 | . 4 8 Tactical Retreats . | . . . Traps | -11 -10 -9 ------- Run | Scr Mat Mat Traps Triggered 1 | . 1 . Indirectly . | . . . Trap Hack Attempts . | . . . Triggered . | . . . Disarmed . | . . . Reprogrammed . | . . . Reused . | . . . Traps Extracted . | . . . Installed . | . . . Triggered . | . . . Machines | -11 -10 -9 ---------- Run | Scr Mat Mat Machines Disabled . | . . . Max in Single Turn . | . . . Machines Sabotaged . | . . . Garrisons Compromised . | . . . Overloaded Fab Kills . | . . . Fab Network Shutdowns . | . . . Hacking | -11 -10 -9 --------- Run | Scr Mat Mat Machines Accessed 5 | . 2 3 Terminals 4 | . 2 2 Fabricators . | . . . Repair Stations . | . . . Recycling Units . | . . . Scanalyzers 1 | . . 1 Garrison Access . | . . . Total Hacks 12 | . 6 6 Successful 10 | . 5 5 Failed 2 | . 1 1 Catastrophic . | . . . Database Lockouts . | . . . Manual . | . . . Terminals 10 | . 6 4 Fabricators . | . . . Repair Stations . | . . . Recycling Units . | . . . Scanalyzers 2 | . . 2 Garrison Access . | . . . Terminal Hacks 8 | . 5 3 Record 4 | . 4 . Level Access Points 1 | . . 1 Branch Access Points 1 | . . 1 Emergency Access Points 1 | . 1 . Locate Traps 1 | . . 1 Fabricator Hacks . | . . . Repair Station Hacks . | . . . Recycling Unit Hacks . | . . . Scanalyzer 2 | . . 2 Insert Component 1 | . . 1 Analyze 1 | . . 1 Garrison Access Hacks . | . . . Unauthorized Hacks . | . . . Terminals . | . . . Fabricators . | . . . Repair Stations . | . . . Recycling Units . | . . . Scanalyzers . | . . . Garrison Access . | . . . Data Cores Recovered . | . . . Used . | . . . Hacking Detections 4 | . 2 2 Full Trace Events 1 | . 1 . Feedback Events . | . . . Feedback Blocked . | . . . Robot Schematics Acquired . | . . . Robots Built . | . . . Matter . | . . . Time . | . . . Total Robot Build Rating . | . . . Part Schematics Acquired 1 | . . 1 Parts Built . | . . . Matter . | . . . Time . | . . . Total Part Build Rating . | . . . Parts Repaired . | . . . Time . | . . . Parts Recycled . | . . . Recycled Matter . | . . . Retrieved Matter . | . . . Retrieved Components . | . . . Parts Scanalyzed 1 | . . 1 Part Schematics Acquired 1 | . . 1 Parts Damaged . | . . . Bothacking | -11 -10 -9 ------------ Run | Scr Mat Mat Used RIF Installer . | . . . Robots Hacked . | . . . Non-combat . | . . . Combat . | . . . Robot Hacks Applied . | . . . Relay Couplers Released . | . . . Robots Rewired . | . . . Allies Hacked . | . . . Hacks Repelled . | . . . Allies | -11 -10 -9 -------- Run | Scr Mat Mat Total Allies . | . . . Largest Group . | . . . Highest-Rated Group . | . . . Highest-Rated Ally . | . . . Total Orders . | . . . Ally Attacks . | . . . Total Damage . | . . . Kills . | . . . Allies Corrupted . | . . . Allies Melted . | . . . Intel | -11 -10 -9 ------- Run | Scr Mat Mat Robot Analysis Total . | . . . Derelict Logs Recovered . | . . . Drone Launches . | . . . Drone Recoveries . | . . . Exploration | -11 -10 -9 ------------- Run | Scr Mat Mat Turns Passed 766 | 79 568 119 Spaces Moved 615 | 38 419 158 Core 17 | 4 . 13 Treads 235 | 34 201 . Legs . | . . . Wheels . | . . . Hover 3 | . 3 . Flight 360 | . 215 145 Fastest Speed 34 | 50 37 34 Average Speed 85 | 148 97 35 Slowest Speed 280 | 160 280 50 Overloaded Moves . | . . . Propulsion Burnouts . | . . . Robots Hopped 3 | . 2 1 Cave-ins Triggered . | . . . Exploration Rate (%) 23 | 4 50 16 Regions Visited 2 Branch Regions . Pre-discovered Areas . | . . . Known Exits Taken . | . . . Unknown Exits Taken 2 | 1 1 . Scrap Searched . | . . . Spaces Dug . | . . . Terrain Destroyed . | . . . Melee . | . . . Projectile . | . . . AOE . | . . . Terrain Rammed . | . . . Walls Destroyed . | . . . Machines Disabled . | . . . Actions | -11 -10 -9 --------- Run | Scr Mat Mat Total 755 | 51 520 184 Wait . | . . . Move 607 | 37 414 156 Hop 3 | . 2 1 Pick Up 7 | . 7 . Fast Attach 23 | 6 14 3 Attach 5 | . 4 1 Detach 11 | . 11 . Swap 4 | . 4 . Drop 18 | . 18 . Fire 53 | 8 45 . Melee 23 | . . 23 Ram . | . . . Kick . | . . . Crush 1 | . 1 . Escape Stasis . | . . . Rewire . | . . . Trap . | . . . Miscellaneous . | . . . Route ------- -11/Scrapyard -10/Materials (discovered 3 exits: *Mat x2 / [*Min]) -9/Materials (discovered 5 exits: Mat x3 / Min x2) History --------- Turn | Location | Event 6 | -11/Scrapyard | Discovered new exit (range 15) 80 | -11/Scrapyard | Entered Materials 198 | -10/Materials | Discovered new exit (range 15) 316 | -10/Materials | Build established: Mutant 467 | -10/Materials | Discovered new exit (range 14) 646 | -10/Materials | Discovered new exit (range 5) 648 | -10/Materials | Entered another Materials area 648 | -9/Materials | Evolved 2 slots: Propulsion x2 656 | -9/Materials | Identified exit to Mines 684 | -9/Materials | Identified exit to Materials 747 | -9/Materials | Core integrity fell below 50% 757 | -9/Materials | Core integrity fell below 20% 761 | -9/Materials | Lost 7 parts (1p3n1u2w) 767 | -9/Materials | Destroyed by Y-45 Defender with Heavy Assault Rifle Last Messages --------------- 00701_ Acquired 13 matter. 00703_ Flight Unit destroyed. 00706_ Sml. Laser destroyed. 00719_ G-34 Mercenary destroyed. 00722_ Ion Engine destroyed. 00724_ Acquired 7 matter. 00728_ Flight Unit destroyed. 00730_ Imp. Heat Sink destroyed. 00732_ G-34 Mercenary destroyed. 00737_ Destroyed Imp. Heat Sink. 00737_ G-47 Trooper system corrupted by crushing effect. 00738_ G-47 Trooper system terminally corrupted. 00738_ Lgt. Nuclear Core fried. 00738_ Aluminum Leg fried. 00741_ Y-45 Defender destroyed. 00761_ Destroyed Heat Sink. 00761_ Y-45 Defender system corrupted by crushing effect. 00762_ Y-45 Defender system terminally corrupted. 00764_ Mace destroyed. 00766_ Acquired Imp. Ion Engine. Map ----- +----------------------------------------------------+ | ???????????????????????????????? | | ???????????????????????????????? | | ??????????????????+????????????? | | ?????????????????# ????????????? | | ????a????????????# ????????????? | | ?????????????????# ????????????? | | ?????????????????# ????????????? | | ?????????????????# ??########### | | ?????? ??????????+ #?# # | | ????? ?????????# #?# # | | ?????? ?????### ### # | | ?????^^^^^^##### # # | | ????? # # | | ????# / # | | ????? # # | | ????#???######## # # | | ##### ############+######+###### | | + ## #????? | | ######## ##### = ## #????? | | ???????# #???# ## #????? | | ?????### ###?# ## #????? | | ?????# #?# """ | ""## #????? | | ?????# ### """ T"## #????? | | ?????# / """ ""## #????? | | ?????# ### ## #????? | | ?????# #?############@#????? | | ?????## ##?# #?#!#????? | | ??????# #??# "" #?#%#????? | | ??????# #### ""S #?#[#????? | | ??????+ a "" #?#!#????? | | ??????# #### #?#%#????? | | ??????#####??# """ #?#%#????? | | ?????????????# """ #?#[#????? | | ?????????????# """ ###%#????? | | ?????????????# ##=#????? | | ?????????????#####+######Y#????? | | ????????????????# [=%[#????? | | ????????????????# #######????? | | ????????????????# #??????????? | | ????????????????# #??????????? | | ????????????????# #??????????? | | ????????????????# #??????????? | | ????????????????# #??????????? | | ????????????????# #??????????? | | ????????????????# #??????????? | | ????????????????# #??????????? | | ????????????????# #??????????? | | ????????????????# #??????????? | | ????????????????# +??????????? | | ????????????????# #??????????? | +----------------------------------------------------+ Best States ------------- Heat Dissipation 42 Energy Generation 10 Energy Capacity 550 Matter Stores 300 Matter Capacity 300 Sight Range 16 Terrain Scan Density 10 Resistance: KI 20 Resistance: TH 20 Resistance: EX 20 Resistance: EM 20 Resistance: I 20 Resistance: S 20 Resistance: P 20 Evasion (%) 63 Recoil Reduction 2 Offensive Hacking 10 Item Schematics ----------------- Datajack | -9/Materials | Scanalyzed Robot Schematics ------------------ None Fabricated ------------ Nothing Alien Tech Used ----------------- None Achievements -------------- None Challenges ------------ None Game ------ Seed AssaultLightningTearclaws Manual? 0 Play Time 00:16:53 Cumulative 16.1 hours Start 2021.10.28 @ 14:38:49 End 2021.10.28 @ 14:54:22 Sessions 1 Manual Loads 0 Difficulty Adventurer Special Mode None Game No. 15 Rogue 1 Adventurer 14 Explorer 0 Win Type - Total 1 Types 1/0/0/0/0/0/0/0/0 Lore% 31 Gallery% 28 Achievement% 32 Wizard Run 0 Options --------- ASCII 1 Keyboard 1 Movement Numpad Keybinds 0 Fullscreen 1 Font 18/X11Bold Map View 76x50 Tactical HUD 1 Map Filters NONE Filters NONE Steam 1 RUN: fab255ca-8d17-4ebd-876a-6406bd058539